[Event "Late-Titled-Tuesday-Blitz-April-30-2024"]
[Site "Chess.com"]
[Date "2024.04.30"]
[Round "1"]
[White "KVAIDAN"]
[Black "AlexPapasimakopoulos"]
[Result "0-1"]
[WhiteElo "2343"]
[BlackElo "2642"]
[TimeControl "180+1"]
[EndTime "14:01:57 PDT"]
[Termination "AlexPapasimakopoulos won by resignation"]

1. f4 {[%clk 0:03:00]} 1... d5 {[%clk 0:02:57.6]} 2. Nf3 {[%clk 0:02:59]} 2...
Nf6 {[%clk 0:02:55.3]} 3. e3 {[%clk 0:02:59.4]} 3... Bg4 {[%clk 0:02:55]} 4. Be2
{[%clk 0:02:58.8]} 4... Nc6 {[%clk 0:02:55.6]} 5. O-O {[%clk 0:02:57.6]} 5...
Bxf3 {[%clk 0:02:55.2]} 6. Bxf3 {[%clk 0:02:57.6]} 6... e5 {[%clk 0:02:56.1]} 7.
c4 {[%clk 0:02:58.1]} 7... dxc4 {[%clk 0:02:47.9]} 8. Bxc6+ {[%clk 0:02:53.2]}
8... bxc6 {[%clk 0:02:47.7]} 9. Qa4 {[%clk 0:02:53.4]} 9... Bd6 {[%clk
0:02:36.3]} 10. Qxc6+ {[%clk 0:02:52.3]} 10... Kf8 {[%clk 0:02:36.6]} 11. Nc3
{[%clk 0:02:47.2]} 11... exf4 {[%clk 0:02:35.3]} 12. exf4 {[%clk 0:02:47.4]}
12... Rb8 {[%clk 0:02:26.4]} 13. Qxc4 {[%clk 0:02:47]} 13... Rb4 {[%clk
0:02:25]} 14. Qd3 {[%clk 0:02:25.4]} 14... Bc5+ {[%clk 0:02:24.8]} 0-1

[Event "Late-Titled-Tuesday-Blitz-April-30-2024"]
[Site "Chess.com"]
[Date "2024.04.30"]
[Round "1"]
[White "CM_rui"]
[Black "2L8IWUN"]
[Result "1-0"]
[WhiteElo "2551"]
[BlackElo "2050"]
[TimeControl "180+1"]
[EndTime "14:02:02 PDT"]
[Termination "CM_rui won by resignation"]

1. e4 {[%clk 0:02:59.2]} 1... e5 {[%clk 0:01:45.9]} 2. Nf3 {[%clk 0:02:58.4]}
2... Nc6 {[%clk 0:01:46.4]} 3. Bb5 {[%clk 0:02:57.6]} 3... a6 {[%clk 0:01:45]}
4. Ba4 {[%clk 0:02:58.3]} 4... Nf6 {[%clk 0:01:44.7]} 5. O-O {[%clk 0:02:58.9]}
5... Be7 {[%clk 0:01:44.5]} 6. Re1 {[%clk 0:02:59.2]} 6... b5 {[%clk 0:01:44.3]}
7. Bb3 {[%clk 0:02:59.9]} 7... O-O {[%clk 0:01:44]} 8. c3 {[%clk 0:03:00.6]}
8... d5 {[%clk 0:01:43.9]} 9. exd5 {[%clk 0:03:01.5]} 9... Nxd5 {[%clk 0:01:44]}
10. Nxe5 {[%clk 0:03:02]} 10... Nxe5 {[%clk 0:01:44.9]} 11. Rxe5 {[%clk
0:03:02.3]} 11... c6 {[%clk 0:01:45.4]} 12. d3 {[%clk 0:03:02.3]} 12... Bd6
{[%clk 0:01:43.9]} 13. Re1 {[%clk 0:03:02.6]} 1-0

[Event "Late-Titled-Tuesday-Blitz-April-30-2024"]
[Site "Chess.com"]
[Date "2024.04.30"]
[Round "1"]
[White "english_player_89"]
[Black "amintabatabaei"]
[Result "0-1"]
[WhiteElo "2526"]
[BlackElo "3107"]
[TimeControl "180+1"]
[EndTime "14:02:36 PDT"]
[Termination "amintabatabaei won by resignation"]

1. e4 {[%clk 0:03:00.9]} 1... c5 {[%clk 0:02:59.1]} 2. Nf3 {[%clk 0:03:00.5]}
2... e6 {[%clk 0:02:59.7]} 3. g3 {[%clk 0:03:00.4]} 3... Nc6 {[%clk 0:02:59.1]}
4. Bg2 {[%clk 0:03:00.3]} 4... Nf6 {[%clk 0:02:59]} 5. Qe2 {[%clk 0:03:00.6]}
5... e5 {[%clk 0:02:55.9]} 6. O-O {[%clk 0:03:00.5]} 6... Be7 {[%clk 0:02:56.3]}
7. c3 {[%clk 0:03:00.6]} 7... d6 {[%clk 0:02:52.8]} 8. Rd1 {[%clk 0:02:51.5]}
8... O-O {[%clk 0:02:52.4]} 9. d4 {[%clk 0:02:51.2]} 9... Qc7 {[%clk 0:02:43.8]}
10. dxc5 {[%clk 0:02:49.4]} 10... dxc5 {[%clk 0:02:44]} 11. Na3 {[%clk
0:02:49.7]} 11... Bg4 {[%clk 0:02:29.5]} 12. h3 {[%clk 0:02:49.2]} 12... Be6
{[%clk 0:02:29.8]} 13. Nc4 {[%clk 0:02:31.5]} 13... Rad8 {[%clk 0:02:29.8]} 14.
Bg5 {[%clk 0:02:30.1]} 14... b5 {[%clk 0:02:20.9]} 15. Bxf6 {[%clk 0:02:24.8]}
15... Bxc4 {[%clk 0:02:18.8]} 0-1

[Event "Late-Titled-Tuesday-Blitz-April-30-2024"]
[Site "Chess.com"]
[Date "2024.04.30"]
[Round "1"]
[White "karinachess1"]
[Black "rikchessmx"]
[Result "1-0"]
[WhiteElo "2607"]
[BlackElo "2261"]
[TimeControl "180+1"]
[EndTime "14:02:59 PDT"]
[Termination "karinachess1 won by resignation"]

1. d4 {[%clk 0:03:00.9]} 1... Nf6 {[%clk 0:02:44.7]} 2. c4 {[%clk 0:03:01]} 2...
e6 {[%clk 0:02:44.2]} 3. Nc3 {[%clk 0:03:01.4]} 3... d5 {[%clk 0:02:44]} 4. cxd5
{[%clk 0:03:01.5]} 4... exd5 {[%clk 0:02:43.8]} 5. Bg5 {[%clk 0:03:01.3]} 5...
Nbd7 {[%clk 0:02:44]} 6. e3 {[%clk 0:03:01.9]} 6... Be7 {[%clk 0:02:44.3]} 7.
Bd3 {[%clk 0:03:02.2]} 7... O-O {[%clk 0:02:44.5]} 8. Nf3 {[%clk 0:03:02.4]}
8... c6 {[%clk 0:02:44.7]} 9. Qc2 {[%clk 0:03:02.6]} 9... Re8 {[%clk 0:02:44.8]}
10. O-O {[%clk 0:03:02.7]} 10... g6 {[%clk 0:02:44.3]} 11. a3 {[%clk 0:02:59.2]}
11... a5 {[%clk 0:02:42.8]} 12. Rab1 {[%clk 0:02:59]} 12... Nh5 {[%clk 0:02:41]}
13. Bxe7 {[%clk 0:02:57.9]} 13... Qxe7 {[%clk 0:02:41.9]} 14. Na4 {[%clk
0:02:56.9]} 14... f5 {[%clk 0:02:39.1]} 15. b4 {[%clk 0:02:56.9]} 15... axb4
{[%clk 0:02:38.8]} 16. axb4 {[%clk 0:02:57.8]} 16... f4 {[%clk 0:02:28.4]} 17.
Rfe1 {[%clk 0:02:49.7]} 17... fxe3 {[%clk 0:02:26.3]} 18. Rxe3 {[%clk
0:02:49.6]} 18... Qf8 {[%clk 0:02:26.3]} 19. Bxg6 {[%clk 0:02:08.4]} 19... hxg6
{[%clk 0:02:17.3]} 20. Qxg6+ {[%clk 0:02:09.3]} 20... Ng7 {[%clk 0:02:16.5]} 21.
Ng5 {[%clk 0:02:02.4]} 21... Nf6 {[%clk 0:02:16.3]} 22. Rf3 {[%clk 0:01:57.4]}
22... Qf7 {[%clk 0:02:05.7]} 23. Qxf7+ {[%clk 0:01:56.7]} 1-0

[Event "Late-Titled-Tuesday-Blitz-April-30-2024"]
[Site "Chess.com"]
[Date "2024.04.30"]
[Round "1"]
[White "Casablanca"]
[Black "Hirna2005"]
[Result "1-0"]
[WhiteElo "2642"]
[BlackElo "2344"]
[TimeControl "180+1"]
[EndTime "14:03:22 PDT"]
[Termination "Casablanca won by resignation"]

1. e4 {[%clk 0:03:00.9]} 1... g6 {[%clk 0:03:00.6]} 2. d4 {[%clk 0:03:00.3]}
2... Bg7 {[%clk 0:03:01.2]} 3. c4 {[%clk 0:03:00.5]} 3... d6 {[%clk 0:03:01.8]}
4. Nc3 {[%clk 0:03:00.8]} 4... Nc6 {[%clk 0:03:02]} 5. Nge2 {[%clk 0:03:01.1]}
5... e5 {[%clk 0:03:01.7]} 6. Be3 {[%clk 0:03:01.6]} 6... exd4 {[%clk
0:03:01.6]} 7. Nxd4 {[%clk 0:03:01.8]} 7... Nge7 {[%clk 0:03:02.1]} 8. h4 {[%clk
0:03:00.6]} 8... f5 {[%clk 0:02:58.6]} 9. h5 {[%clk 0:02:55.5]} 9... fxe4 {[%clk
0:02:54.5]} 10. hxg6 {[%clk 0:02:52.6]} 10... Nxg6 {[%clk 0:02:52]} 11. Qd2
{[%clk 0:02:50.3]} 11... Bg4 {[%clk 0:02:40.2]} 12. f3 {[%clk 0:02:23.2]} 12...
exf3 {[%clk 0:02:37.9]} 13. gxf3 {[%clk 0:02:23.7]} 13... Bd7 {[%clk 0:02:35.9]}
14. Bg5 {[%clk 0:02:21.6]} 14... Bf6 {[%clk 0:02:34.9]} 15. Bxf6 {[%clk
0:02:21]} 15... Qxf6 {[%clk 0:02:35]} 16. Ndb5 {[%clk 0:01:33.4]} 16... O-O-O
{[%clk 0:02:31.5]} 17. O-O-O {[%clk 0:01:33.5]} 17... a6 {[%clk 0:02:28.1]} 18.
Nxc7 {[%clk 0:01:33]} 18... Qxf3 {[%clk 0:02:20.8]} 19. Bg2 {[%clk 0:01:23.2]}
19... Qf4 {[%clk 0:02:18.5]} 20. N7d5 {[%clk 0:01:20.6]} 20... Bg4 {[%clk
0:02:12.2]} 21. Nxf4 {[%clk 0:01:19.5]} 1-0

[Event "Late-Titled-Tuesday-Blitz-April-30-2024"]
[Site "Chess.com"]
[Date "2024.04.30"]
[Round "1"]
[White "Blampman"]
[Black "Jakhongir-Vakhidov"]
[Result "0-1"]
[WhiteElo "2416"]
[BlackElo "2723"]
[TimeControl "180+1"]
[EndTime "14:03:29 PDT"]
[Termination "Jakhongir-Vakhidov won by resignation"]

1. d4 {[%clk 0:02:57.6]} 1... Nf6 {[%clk 0:03:00.2]} 2. c4 {[%clk 0:02:56.6]}
2... d6 {[%clk 0:03:00.6]} 3. Nc3 {[%clk 0:02:56.8]} 3... e5 {[%clk 0:03:01.1]}
4. Nf3 {[%clk 0:02:54]} 4... e4 {[%clk 0:03:01.3]} 5. Ng5 {[%clk 0:02:53.3]}
5... Qe7 {[%clk 0:03:01.7]} 6. g3 {[%clk 0:02:53.2]} 6... h6 {[%clk 0:02:55.2]}
7. Nh3 {[%clk 0:02:52.9]} 7... c6 {[%clk 0:02:53.6]} 8. Bg2 {[%clk 0:02:53.1]}
8... g6 {[%clk 0:02:51.1]} 9. Nf4 {[%clk 0:02:52]} 9... g5 {[%clk 0:02:46.2]}
10. Nh3 {[%clk 0:02:51.8]} 10... Bg7 {[%clk 0:02:45.8]} 11. O-O {[%clk
0:02:49.7]} 11... O-O {[%clk 0:02:46.1]} 12. f4 {[%clk 0:02:49.6]} 12... exf3
{[%clk 0:02:45]} 13. Nf4 {[%clk 0:02:50.5]} 13... gxf4 {[%clk 0:02:44.8]} 14.
exf3 {[%clk 0:02:50.3]} 14... fxg3 {[%clk 0:02:40.5]} 15. hxg3 {[%clk
0:02:51.2]} 15... Nh5 {[%clk 0:02:35]} 16. Kh2 {[%clk 0:02:46.6]} 16... Qf6
{[%clk 0:02:29.1]} 17. d5 {[%clk 0:02:44.6]} 17... Qg6 {[%clk 0:02:26.9]} 18.
Qe1 {[%clk 0:02:39.5]} 18... Nd7 {[%clk 0:02:18.9]} 19. f4 {[%clk 0:02:34.3]}
19... Ndf6 {[%clk 0:02:17.1]} 20. Be3 {[%clk 0:02:31.2]} 20... Ng4+ {[%clk
0:02:17.1]} 21. Kg1 {[%clk 0:02:30.8]} 21... c5 {[%clk 0:02:15.7]} 22. Bd2
{[%clk 0:02:15.6]} 22... Bf5 {[%clk 0:02:15.2]} 23. Rf3 {[%clk 0:02:11.7]} 23...
Bd4+ {[%clk 0:02:12]} 24. Kh1 {[%clk 0:02:11.9]} 24... Nhf6 {[%clk 0:02:09.1]}
25. Bh3 {[%clk 0:02:04.5]} 25... Qh5 {[%clk 0:02:08.9]} 26. Kg2 {[%clk
0:02:04.8]} 26... Ne3+ {[%clk 0:02:06.4]} 27. Rxe3 {[%clk 0:02:00.1]} 27...
Qxh3+ {[%clk 0:02:05.9]} 28. Kg1 {[%clk 0:01:55.6]} 28... Ng4 {[%clk 0:02:04.5]}
29. Qe2 {[%clk 0:01:45.1]} 29... Rae8 {[%clk 0:02:04.5]} 30. Nd1 {[%clk
0:01:45.4]} 30... Qxg3+ {[%clk 0:02:03.6]} 0-1

[Event "Late-Titled-Tuesday-Blitz-April-30-2024"]
[Site "Chess.com"]
[Date "2024.04.30"]
[Round "1"]
[White "ACollins05"]
[Black "LuciaMalanRamos"]
[Result "1-0"]
[WhiteElo "2555"]
[BlackElo "2114"]
[TimeControl "180+1"]
[EndTime "14:03:51 PDT"]
[Termination "ACollins05 won by checkmate"]

1. e4 {[%clk 0:03:00.9]} 1... c5 {[%clk 0:02:57.6]} 2. Nf3 {[%clk 0:03:00.5]}
2... Nc6 {[%clk 0:02:57.9]} 3. c3 {[%clk 0:03:00.5]} 3... Nf6 {[%clk 0:02:57.7]}
4. e5 {[%clk 0:03:00.5]} 4... Nd5 {[%clk 0:02:58.3]} 5. d4 {[%clk 0:03:01.3]}
5... cxd4 {[%clk 0:02:58.3]} 6. cxd4 {[%clk 0:03:02.2]} 6... e6 {[%clk
0:02:58.9]} 7. Bd2 {[%clk 0:03:02.1]} 7... d6 {[%clk 0:02:59.2]} 8. Nc3 {[%clk
0:03:02.3]} 8... Be7 {[%clk 0:02:59.4]} 9. Bd3 {[%clk 0:02:58]} 9... O-O {[%clk
0:02:58.6]} 10. h4 {[%clk 0:02:57.9]} 10... dxe5 {[%clk 0:02:56.8]} 11. dxe5
{[%clk 0:02:58.8]} 11... h6 {[%clk 0:02:52.5]} 12. h5 {[%clk 0:02:49.5]} 12...
Bb4 {[%clk 0:02:46.2]} 13. Nxd5 {[%clk 0:02:47.8]} 13... Bxd2+ {[%clk
0:02:46.3]} 14. Qxd2 {[%clk 0:02:48.7]} 14... Qxd5 {[%clk 0:02:39.5]} 15. Qe2
{[%clk 0:02:44.7]} 15... Nd4 {[%clk 0:02:32.1]} 16. Nxd4 {[%clk 0:02:38.3]}
16... Qxd4 {[%clk 0:02:31.8]} 17. O-O {[%clk 0:02:37.4]} 17... Bd7 {[%clk
0:02:26.6]} 18. Rad1 {[%clk 0:02:34.9]} 18... Qf4 {[%clk 0:02:26.8]} 19. Qe4
{[%clk 0:02:31.8]} 19... Qxe4 {[%clk 0:02:26.7]} 20. Bxe4 {[%clk 0:02:32.7]}
20... Bc6 {[%clk 0:02:25.1]} 21. Bxc6 {[%clk 0:02:32.8]} 21... bxc6 {[%clk
0:02:26]} 22. Rd6 {[%clk 0:02:32.9]} 22... Rab8 {[%clk 0:02:25.7]} 23. b3 {[%clk
0:02:33.2]} 23... Rb6 {[%clk 0:02:26]} 24. Rc1 {[%clk 0:02:32.3]} 24... Rc8
{[%clk 0:02:26.2]} 25. Rd7 {[%clk 0:02:32.3]} 25... a6 {[%clk 0:02:22.2]} 26.
Ra7 {[%clk 0:02:29]} 26... c5 {[%clk 0:02:22.2]} 27. Rd1 {[%clk 0:02:27.3]}
27... c4 {[%clk 0:02:07.9]} 28. bxc4 {[%clk 0:02:26]} 28... Rxc4 {[%clk
0:02:04.3]} 29. Rd8+ {[%clk 0:02:24.5]} 29... Kh7 {[%clk 0:02:03.7]} 30. Rxf7
{[%clk 0:02:23.8]} 30... Rh4 {[%clk 0:01:48.6]} 31. f4 {[%clk 0:02:11.8]} 31...
Rg4 {[%clk 0:01:33.8]} 32. Rff8 {[%clk 0:02:08.9]} 32... g6 {[%clk 0:01:21.2]}
33. Rf7# {[%clk 0:02:06.8]} 1-0

[Event "Late-Titled-Tuesday-Blitz-April-30-2024"]
[Site "Chess.com"]
[Date "2024.04.30"]
[Round "1"]
[White "The_Straightforward_Rook"]
[Black "SpeedofLight0"]
[Result "0-1"]
[WhiteElo "2513"]
[BlackElo "3028"]
[TimeControl "180+1"]
[EndTime "14:03:57 PDT"]
[Termination "SpeedofLight0 won by resignation"]

1. e4 {[%clk 0:03:00.9]} 1... c6 {[%clk 0:02:59.7]} 2. d4 {[%clk 0:02:59.5]}
2... d5 {[%clk 0:03:00.6]} 3. e5 {[%clk 0:03:00.1]} 3... c5 {[%clk 0:03:00.4]}
4. Nf3 {[%clk 0:02:59.4]} 4... cxd4 {[%clk 0:03:00.3]} 5. Nxd4 {[%clk
0:02:59.2]} 5... Nc6 {[%clk 0:02:59.9]} 6. Nxc6 {[%clk 0:02:58.8]} 6... bxc6
{[%clk 0:03:00.8]} 7. Bd3 {[%clk 0:02:57]} 7... e6 {[%clk 0:03:00.8]} 8. O-O
{[%clk 0:02:57.4]} 8... Ne7 {[%clk 0:03:00.7]} 9. Nd2 {[%clk 0:02:56.5]} 9...
Qc7 {[%clk 0:02:59.5]} 10. Re1 {[%clk 0:02:54.2]} 10... Ng6 {[%clk 0:02:57.9]}
11. Nf3 {[%clk 0:02:48.6]} 11... Be7 {[%clk 0:02:58.1]} 12. c4 {[%clk
0:02:46.8]} 12... O-O {[%clk 0:02:57.7]} 13. h4 {[%clk 0:02:38.9]} 13... Rd8
{[%clk 0:02:55.2]} 14. h5 {[%clk 0:02:37.8]} 14... dxc4 {[%clk 0:02:51]} 15.
hxg6 {[%clk 0:02:29.7]} 15... fxg6 {[%clk 0:02:42.4]} 16. Re3 {[%clk 0:02:20]}
16... Bc5 {[%clk 0:02:39.1]} 17. Re4 {[%clk 0:02:18.3]} 17... cxd3 {[%clk
0:02:36.3]} 18. Bg5 {[%clk 0:02:17.9]} 18... Rd5 {[%clk 0:02:33.7]} 19. Rc1
{[%clk 0:02:12.9]} 19... Rb8 {[%clk 0:02:29.4]} 20. Rec4 {[%clk 0:02:11.3]}
20... Qb6 {[%clk 0:02:25.4]} 21. Bh4 {[%clk 0:02:02.2]} 21... Ba6 {[%clk
0:02:22.4]} 22. R4c3 {[%clk 0:01:59.9]} 22... Rf8 {[%clk 0:02:13]} 23. a3 {[%clk
0:01:53.1]} 23... Bb5 {[%clk 0:01:41.4]} 24. b4 {[%clk 0:01:42.9]} 24... Bd4
{[%clk 0:01:40.1]} 25. Nxd4 {[%clk 0:01:36.4]} 25... Qxd4 {[%clk 0:01:41]} 26.
Bg3 {[%clk 0:01:36.4]} 26... d2 {[%clk 0:01:39.9]} 27. R1c2 {[%clk 0:01:33.6]}
27... Be2 {[%clk 0:01:39.5]} 0-1

[Event "Late-Titled-Tuesday-Blitz-April-30-2024"]
[Site "Chess.com"]
[Date "2024.04.30"]
[Round "1"]
[White "bubeliang"]
[Black "Slovineanu"]
[Result "1/2-1/2"]
[WhiteElo "2819"]
[BlackElo "2472"]
[TimeControl "180+1"]
[EndTime "14:04:21 PDT"]
[Termination "Game drawn by agreement"]

1. e4 {[%clk 0:02:59.9]} 1... c6 {[%clk 0:02:59.9]} 2. d4 {[%clk 0:02:59.3]}
2... d5 {[%clk 0:03:00.2]} 3. Nd2 {[%clk 0:02:58.7]} 3... dxe4 {[%clk
0:03:00.1]} 4. Nxe4 {[%clk 0:02:59.6]} 4... Nf6 {[%clk 0:03:00.6]} 5. Nxf6+
{[%clk 0:02:59.4]} 5... exf6 {[%clk 0:03:01]} 6. c3 {[%clk 0:02:59.8]} 6... Bd6
{[%clk 0:03:01.4]} 7. Bd3 {[%clk 0:03:00.3]} 7... Na6 {[%clk 0:03:01.6]} 8. Qc2
{[%clk 0:02:58]} 8... h5 {[%clk 0:03:01.1]} 9. Ne2 {[%clk 0:02:57.5]} 9... Nc7
{[%clk 0:03:00.2]} 10. Bf4 {[%clk 0:02:55.5]} 10... Be6 {[%clk 0:02:52.2]} 11.
O-O {[%clk 0:02:48.9]} 11... Kf8 {[%clk 0:02:50.8]} 12. Qd2 {[%clk 0:02:47.5]}
12... g6 {[%clk 0:02:38.2]} 13. Bxd6+ {[%clk 0:02:32.5]} 13... Qxd6 {[%clk
0:02:37.7]} 14. f4 {[%clk 0:02:33.4]} 14... f5 {[%clk 0:02:33.7]} 15. Qe3 {[%clk
0:02:31.2]} 15... Kg7 {[%clk 0:02:07.3]} 16. Qe5+ {[%clk 0:02:30.7]} 16... Qxe5
{[%clk 0:02:07.5]} 17. fxe5 {[%clk 0:02:31.6]} 17... b5 {[%clk 0:02:05.6]} 18.
Nf4 {[%clk 0:02:30.9]} 18... a5 {[%clk 0:02:00.3]} 19. Be2 {[%clk 0:02:27.5]}
19... a4 {[%clk 0:01:48.5]} 20. Bf3 {[%clk 0:02:26.7]} 20... Bd5 {[%clk
0:01:48.9]} 21. Rfe1 {[%clk 0:02:20.4]} 21... Rhe8 {[%clk 0:01:46.3]} 22. Bxd5
{[%clk 0:02:14.1]} 22... Nxd5 {[%clk 0:01:45.9]} 23. Nxd5 {[%clk 0:02:13.2]}
23... cxd5 {[%clk 0:01:46.1]} 24. a3 {[%clk 0:02:13.4]} 24... Rac8 {[%clk
0:01:42.1]} 25. Kf2 {[%clk 0:02:12.9]} 25... f6 {[%clk 0:01:36.2]} 26. Rad1
{[%clk 0:02:11.3]} 26... Kf7 {[%clk 0:01:32.1]} 27. Re3 {[%clk 0:01:57.7]} 27...
fxe5 {[%clk 0:01:28.9]} 28. dxe5 {[%clk 0:01:55.5]} 28... Ke6 {[%clk 0:01:28.8]}
29. Rd4 {[%clk 0:01:52.8]} 29... Rc4 {[%clk 0:01:26.6]} 30. Red3 {[%clk
0:01:52.8]} 1/2-1/2

[Event "Late-Titled-Tuesday-Blitz-April-30-2024"]
[Site "Chess.com"]
[Date "2024.04.30"]
[Round "1"]
[White "Slovak_fighter2000"]
[Black "bascheyaro"]
[Result "0-1"]
[WhiteElo "2468"]
[BlackElo "2844"]
[TimeControl "180+1"]
[EndTime "14:04:30 PDT"]
[Termination "bascheyaro won by resignation"]

1. d4 {[%clk 0:02:58.7]} 1... Nf6 {[%clk 0:02:58.5]} 2. Nf3 {[%clk 0:02:58.7]}
2... d5 {[%clk 0:02:58.8]} 3. c4 {[%clk 0:02:58.9]} 3... c6 {[%clk 0:02:59.3]}
4. e3 {[%clk 0:02:58.7]} 4... Bf5 {[%clk 0:02:59.3]} 5. Nc3 {[%clk 0:02:58.3]}
5... e6 {[%clk 0:02:59.2]} 6. Qb3 {[%clk 0:02:57.9]} 6... Qb6 {[%clk 0:02:59]}
7. Nh4 {[%clk 0:02:58.2]} 7... Be4 {[%clk 0:02:59.1]} 8. Nxe4 {[%clk 0:02:48.9]}
8... Nxe4 {[%clk 0:02:58.5]} 9. c5 {[%clk 0:02:41.3]} 9... Qa5+ {[%clk 0:02:56]}
10. Ke2 {[%clk 0:02:37.8]} 10... b5 {[%clk 0:02:47.4]} 11. f3 {[%clk 0:02:29.7]}
11... Nxc5 {[%clk 0:02:44.7]} 12. dxc5 {[%clk 0:02:26.8]} 12... g5 {[%clk
0:02:45]} 13. Bd2 {[%clk 0:02:21.2]} 13... Qc7 {[%clk 0:02:44.7]} 14. Qc3 {[%clk
0:02:11.9]} 14... Rg8 {[%clk 0:02:44.2]} 15. g3 {[%clk 0:01:59.7]} 15... gxh4
{[%clk 0:02:43.9]} 16. gxh4 {[%clk 0:02:00.6]} 16... Nd7 {[%clk 0:02:40.6]} 17.
Bh3 {[%clk 0:01:49.4]} 17... Nxc5 {[%clk 0:02:32.9]} 18. Rac1 {[%clk 0:01:46]}
18... a5 {[%clk 0:02:29.6]} 19. Qc2 {[%clk 0:01:42.5]} 19... f5 {[%clk
0:02:21.2]} 20. b4 {[%clk 0:01:38]} 20... axb4 {[%clk 0:02:08.4]} 21. Bxb4
{[%clk 0:01:38.9]} 21... Nd7 {[%clk 0:02:06.9]} 22. Bxf8 {[%clk 0:01:32.1]}
22... Kxf8 {[%clk 0:02:06.7]} 23. a4 {[%clk 0:00:58.2]} 23... Rxa4 {[%clk
0:02:04.9]} 24. Bxf5 {[%clk 0:00:37.9]} 24... Rg2+ {[%clk 0:02:01.5]} 0-1

[Event "Late-Titled-Tuesday-Blitz-April-30-2024"]
[Site "Chess.com"]
[Date "2024.04.30"]
[Round "1"]
[White "mishanick"]
[Black "imdvb6307"]
[Result "1-0"]
[WhiteElo "3102"]
[BlackElo "2524"]
[TimeControl "180+1"]
[EndTime "14:04:38 PDT"]
[Termination "mishanick won by checkmate"]

1. d4 {[%clk 0:02:56.9]} 1... d5 {[%clk 0:02:59.7]} 2. c4 {[%clk 0:02:57.5]}
2... c6 {[%clk 0:03:00]} 3. Nc3 {[%clk 0:02:57.8]} 3... Nf6 {[%clk 0:02:59.4]}
4. Nf3 {[%clk 0:02:56.8]} 4... e6 {[%clk 0:02:59.1]} 5. g3 {[%clk 0:02:54.8]}
5... Nbd7 {[%clk 0:02:57]} 6. Bg2 {[%clk 0:02:54.8]} 6... dxc4 {[%clk
0:02:57.1]} 7. O-O {[%clk 0:02:54.2]} 7... Be7 {[%clk 0:02:51.4]} 8. a4 {[%clk
0:02:53.6]} 8... O-O {[%clk 0:02:27.1]} 9. e4 {[%clk 0:02:53.9]} 9... e5 {[%clk
0:02:26.3]} 10. dxe5 {[%clk 0:02:53.3]} 10... Ng4 {[%clk 0:02:26]} 11. Bf4
{[%clk 0:02:52.2]} 11... Qa5 {[%clk 0:02:25.6]} 12. e6 {[%clk 0:02:52.5]} 12...
fxe6 {[%clk 0:02:23.6]} 13. Bh3 {[%clk 0:02:52.5]} 13... Nde5 {[%clk 0:01:42.7]}
14. Bxg4 {[%clk 0:02:47.8]} 14... Nxg4 {[%clk 0:01:41.3]} 15. e5 {[%clk
0:02:48.5]} 15... Qd8 {[%clk 0:00:42.6]} 16. Nd2 {[%clk 0:02:48.2]} 16... Nh6
{[%clk 0:00:41]} 17. Bxh6 {[%clk 0:02:38.4]} 17... gxh6 {[%clk 0:00:40.3]} 18.
Nxc4 {[%clk 0:02:33.4]} 18... Qxd1 {[%clk 0:00:25.5]} 19. Raxd1 {[%clk
0:02:34.3]} 19... b6 {[%clk 0:00:25.5]} 20. Nd6 {[%clk 0:02:33.7]} 20... Ba6
{[%clk 0:00:24.4]} 21. Rfe1 {[%clk 0:02:34.2]} 21... Rad8 {[%clk 0:00:23.8]} 22.
Nce4 {[%clk 0:02:33.5]} 22... c5 {[%clk 0:00:18.4]} 23. f4 {[%clk 0:02:33.8]}
23... Rd7 {[%clk 0:00:15.5]} 24. Nf5 {[%clk 0:02:26.2]} 24... Rc7 {[%clk
0:00:13.7]} 25. Nxe7+ {[%clk 0:02:25.8]} 25... Rxe7 {[%clk 0:00:13.2]} 26. Rd6
{[%clk 0:02:25.9]} 26... Bb7 {[%clk 0:00:13.5]} 27. Nf6+ {[%clk 0:02:25.9]}
27... Kg7 {[%clk 0:00:13]} 28. Red1 {[%clk 0:02:25.3]} 28... Rff7 {[%clk
0:00:12.8]} 29. Rd8 {[%clk 0:02:25.1]} 29... Bc6 {[%clk 0:00:11.8]} 30. Rg8#
{[%clk 0:02:24.9]} 1-0

[Event "Late-Titled-Tuesday-Blitz-April-30-2024"]
[Site "Chess.com"]
[Date "2024.04.30"]
[Round "1"]
[White "TheoSlade"]
[Black "RandomNoob04"]
[Result "0-1"]
[WhiteElo "2418"]
[BlackElo "2729"]
[TimeControl "180+1"]
[EndTime "14:04:46 PDT"]
[Termination "RandomNoob04 won by checkmate"]

1. d4 {[%clk 0:03:00.9]} 1... Nf6 {[%clk 0:02:59.8]} 2. c4 {[%clk 0:03:01.1]}
2... c5 {[%clk 0:03:00]} 3. d5 {[%clk 0:03:01.1]} 3... b5 {[%clk 0:03:00.6]} 4.
cxb5 {[%clk 0:03:02]} 4... a6 {[%clk 0:03:01.2]} 5. bxa6 {[%clk 0:03:02.9]} 5...
g6 {[%clk 0:03:01.8]} 6. Nc3 {[%clk 0:03:02.5]} 6... Bg7 {[%clk 0:03:02.5]} 7.
e4 {[%clk 0:03:03]} 7... O-O {[%clk 0:03:03.2]} 8. Nf3 {[%clk 0:02:57.1]} 8...
Qa5 {[%clk 0:03:03.7]} 9. a7 {[%clk 0:02:55.6]} 9... Nxe4 {[%clk 0:03:02.7]} 10.
axb8=Q {[%clk 0:02:48.7]} 10... Rxb8 {[%clk 0:03:03.6]} 11. Bd2 {[%clk
0:01:53.8]} 11... Nxd2 {[%clk 0:03:03.1]} 12. Nxd2 {[%clk 0:01:50.1]} 12... Rxb2
{[%clk 0:03:03.7]} 13. Rc1 {[%clk 0:00:12.4]} 13... Bxc3 {[%clk 0:03:02.1]} 14.
Rc2 {[%clk 0:00:11.4]} 14... Bxd2+ {[%clk 0:02:28.9]} 15. Rxd2 {[%clk
0:00:07.4]} 15... Rxa2 {[%clk 0:02:28.6]} 16. Bc4 {[%clk 0:00:05.6]} 16... Ra1
{[%clk 0:02:27.8]} 17. O-O {[%clk 0:00:02.7]} 17... Rxd1 {[%clk 0:02:26.9]} 18.
Rfxd1 {[%clk 0:00:03.6]} 18... d6 {[%clk 0:02:23.9]} 19. Re2 {[%clk 0:00:01.1]}
19... Qa4 {[%clk 0:02:10]} 20. Bd3 {[%clk 0:00:00.7]} 20... Qxd1+ {[%clk
0:02:09.1]} 21. Re1 {[%clk 0:00:00.7]} 21... Qxe1+ {[%clk 0:02:09.7]} 22. Bf1
{[%clk 0:00:01.5]} 22... Ba6 {[%clk 0:02:10]} 23. g3 {[%clk 0:00:02.2]} 23...
Qxf1# {[%clk 0:02:10]} 0-1